[Event "Early-Titled-Tuesday-Blitz-October-03-2023"]
[Site "Chess.com"]
[Date "2023.10.03"]
[Round "3"]
[White "zimmm36"]
[Black "Giorno"]
[Result "0-1"]
[WhiteElo "2757"]
[BlackElo "2510"]
[TimeControl "180+1"]
[EndTime "8:27:23 PDT"]
[Termination "Giorno won by resignation"]

1. c4 {[%clk 0:03:00.9]} 1... e5 {[%clk 0:02:57.9]} 2. g3 {[%clk 0:03:00.5]}
2... d5 {[%clk 0:02:55.3]} 3. cxd5 {[%clk 0:02:58.8]} 3... Qxd5 {[%clk 0:02:55]}
4. Nf3 {[%clk 0:02:59.1]} 4... Nc6 {[%clk 0:02:52.8]} 5. Nc3 {[%clk 0:02:58.9]}
5... Qd8 {[%clk 0:02:43]} 6. Bg2 {[%clk 0:02:58.8]} 6... Nf6 {[%clk 0:02:43]} 7.
O-O {[%clk 0:02:58.5]} 7... Bd6 {[%clk 0:02:40.2]} 8. a3 {[%clk 0:02:56.3]} 8...
O-O {[%clk 0:02:34.1]} 9. b4 {[%clk 0:02:52.5]} 9... Nd4 {[%clk 0:02:32.1]} 10.
Bb2 {[%clk 0:02:49.6]} 10... Nxf3+ {[%clk 0:02:28.2]} 11. Bxf3 {[%clk
0:02:49.4]} 11... c6 {[%clk 0:02:27.9]} 12. d4 {[%clk 0:02:47.2]} 12... Qe7
{[%clk 0:02:24.3]} 13. Bg2 {[%clk 0:02:31.8]} 13... exd4 {[%clk 0:02:14.2]} 14.
Qxd4 {[%clk 0:02:32.7]} 14... Be5 {[%clk 0:02:14.5]} 15. Qh4 {[%clk 0:02:32.4]}
15... Re8 {[%clk 0:02:07.9]} 16. Rad1 {[%clk 0:02:29.1]} 16... a5 {[%clk
0:02:03.2]} 17. Rfe1 {[%clk 0:02:16.4]} 17... axb4 {[%clk 0:02:00.5]} 18. axb4
{[%clk 0:02:17.3]} 18... Be6 {[%clk 0:01:39]} 19. e4 {[%clk 0:02:04.2]} 19...
Qxb4 {[%clk 0:01:34.3]} 20. Rb1 {[%clk 0:01:23.9]} 20... Bxc3 {[%clk 0:01:32.2]}
21. Bxc3 {[%clk 0:01:24.8]} 21... Qxc3 {[%clk 0:01:32.3]} 22. e5 {[%clk
0:01:25.4]} 22... Nd5 {[%clk 0:01:27.1]} 23. Be4 {[%clk 0:01:24.3]} 23... g6
{[%clk 0:01:24.2]} 24. Qh6 {[%clk 0:01:17.4]} 24... Qxe5 {[%clk 0:01:06]} 25.
Rbd1 {[%clk 0:00:48.3]} 25... Nc3 {[%clk 0:00:56.7]} 26. Bxc6 {[%clk 0:00:48.5]}
26... Ne2+ {[%clk 0:00:43.1]} 0-1

[Event "Early-Titled-Tuesday-Blitz-October-03-2023"]
[Site "Chess.com"]
[Date "2023.10.03"]
[Round "3"]
[White "Markov_Mikhail"]
[Black "sergoy"]
[Result "0-1"]
[WhiteElo "2709"]
[BlackElo "3029"]
[TimeControl "180+1"]
[EndTime "8:27:28 PDT"]
[Termination "sergoy won by resignation"]

1. c4 {[%clk 0:02:44.5]} 1... c6 {[%clk 0:02:58.8]} 2. Nf3 {[%clk 0:02:44.3]}
2... d5 {[%clk 0:02:59.3]} 3. e3 {[%clk 0:02:45.2]} 3... Nf6 {[%clk 0:02:59.5]}
4. Nc3 {[%clk 0:02:45.9]} 4... Nbd7 {[%clk 0:03:00.2]} 5. d4 {[%clk 0:02:46.2]}
5... e6 {[%clk 0:03:00.3]} 6. Bd3 {[%clk 0:02:46.9]} 6... dxc4 {[%clk
0:03:00.6]} 7. Bxc4 {[%clk 0:02:47.8]} 7... b5 {[%clk 0:03:01.4]} 8. Bd3 {[%clk
0:02:48.4]} 8... Bd6 {[%clk 0:03:02.1]} 9. e4 {[%clk 0:02:44.7]} 9... e5 {[%clk
0:03:02.3]} 10. dxe5 {[%clk 0:02:40]} 10... Nxe5 {[%clk 0:03:02.3]} 11. Nxe5
{[%clk 0:02:40.4]} 11... Bxe5 {[%clk 0:03:03.2]} 12. O-O {[%clk 0:02:40.5]}
12... O-O {[%clk 0:03:03.2]} 13. f4 {[%clk 0:02:39.7]} 13... Bd4+ {[%clk
0:03:01.5]} 14. Kh1 {[%clk 0:02:40.2]} 14... Ng4 {[%clk 0:03:02.2]} 15. h3
{[%clk 0:02:18.1]} 15... Nf2+ {[%clk 0:02:58.6]} 16. Rxf2 {[%clk 0:02:18.5]}
16... Bxf2 {[%clk 0:02:59.2]} 17. Qe2 {[%clk 0:02:19.4]} 17... Qh4 {[%clk
0:02:54.7]} 18. Qf3 {[%clk 0:02:10.9]} 18... Bd4 {[%clk 0:02:49.2]} 19. Ne2
{[%clk 0:02:02.7]} 19... Qe1+ {[%clk 0:02:33.6]} 20. Kh2 {[%clk 0:02:02.6]}
20... Bb6 {[%clk 0:02:16.1]} 21. Rb1 {[%clk 0:01:28.3]} 21... Qf2 {[%clk
0:02:13.6]} 22. Qxf2 {[%clk 0:01:24.3]} 22... Bxf2 {[%clk 0:02:14.5]} 23. e5
{[%clk 0:01:24.5]} 23... Be6 {[%clk 0:02:13.2]} 24. Be4 {[%clk 0:01:22.7]} 24...
Bxa2 {[%clk 0:02:13.1]} 25. Ra1 {[%clk 0:01:22.7]} 25... Bd5 {[%clk 0:02:13.7]}
26. Bxd5 {[%clk 0:01:21.1]} 26... cxd5 {[%clk 0:02:14.6]} 27. Bd2 {[%clk
0:01:21.8]} 27... a5 {[%clk 0:02:07.5]} 28. Bxa5 {[%clk 0:01:21.5]} 28... Bb6
{[%clk 0:01:52.2]} 29. b4 {[%clk 0:01:20.4]} 29... Rfc8 {[%clk 0:01:52.6]} 30.
Rd1 {[%clk 0:01:18.1]} 30... Bxa5 {[%clk 0:01:52.9]} 31. bxa5 {[%clk 0:01:19]}
31... Rxa5 {[%clk 0:01:52.8]} 32. Rxd5 {[%clk 0:01:18.2]} 32... Ra2 {[%clk
0:01:49.5]} 33. Nc3 {[%clk 0:01:15]} 33... Rf2 {[%clk 0:01:40.6]} 34. Nxb5
{[%clk 0:01:13.7]} 34... Rxf4 {[%clk 0:01:39.7]} 35. Nd4 {[%clk 0:01:09]} 35...
h6 {[%clk 0:01:35.9]} 36. Kg3 {[%clk 0:01:07]} 36... Re4 {[%clk 0:01:34]} 37.
Nf3 {[%clk 0:01:01]} 37... Re2 {[%clk 0:01:33.6]} 38. Nh4 {[%clk 0:00:48.8]}
38... Rc3+ {[%clk 0:01:30.1]} 39. Nf3 {[%clk 0:00:47.1]} 39... Rcc2 {[%clk
0:01:27.3]} 40. Rd8+ {[%clk 0:00:46.8]} 40... Kh7 {[%clk 0:01:27.3]} 41. Rd7
{[%clk 0:00:47.7]} 41... Rxg2+ {[%clk 0:01:20.8]} 42. Kf4 {[%clk 0:00:48]} 42...
Rc4+ {[%clk 0:01:21.2]} 43. Ke3 {[%clk 0:00:47.2]} 43... Rc3+ {[%clk 0:01:21.1]}
44. Ke4 {[%clk 0:00:44.6]} 44... Re2+ {[%clk 0:01:20.9]} 0-1

[Event "Early-Titled-Tuesday-Blitz-October-03-2023"]
[Site "Chess.com"]
[Date "2023.10.03"]
[Round "3"]
[White "LikeWater"]
[Black "esrosenberg"]
[Result "1-0"]
[WhiteElo "2572"]
[BlackElo "2369"]
[TimeControl "180+1"]
[EndTime "8:27:29 PDT"]
[Termination "LikeWater won by resignation"]

1. Nf3 {[%clk 0:03:00]} 1... d5 {[%clk 0:03:00]} 2. g3 {[%clk 0:02:59.7]} 2...
Nd7 {[%clk 0:03:00.6]} 3. c4 {[%clk 0:02:58.6]} 3... dxc4 {[%clk 0:02:56.7]} 4.
Bg2 {[%clk 0:02:59]} 4... Nb6 {[%clk 0:02:56.6]} 5. O-O {[%clk 0:02:59.8]} 5...
Nf6 {[%clk 0:02:56.9]} 6. a4 {[%clk 0:02:53]} 6... a5 {[%clk 0:02:56.8]} 7. b3
{[%clk 0:02:50.6]} 7... cxb3 {[%clk 0:02:44.3]} 8. Qxb3 {[%clk 0:02:51.5]} 8...
Be6 {[%clk 0:02:45.2]} 9. Qc2 {[%clk 0:02:49.9]} 9... c6 {[%clk 0:02:38.4]} 10.
d4 {[%clk 0:02:43.5]} 10... g6 {[%clk 0:02:36.3]} 11. e4 {[%clk 0:02:40.7]}
11... Bg7 {[%clk 0:02:34.4]} 12. Nbd2 {[%clk 0:02:36.3]} 12... O-O {[%clk
0:02:34]} 13. Re1 {[%clk 0:02:33.9]} 13... Bg4 {[%clk 0:02:25.3]} 14. Rb1 {[%clk
0:02:29.5]} 14... Bxf3 {[%clk 0:01:50.1]} 15. Nxf3 {[%clk 0:02:30.4]} 15... Nfd7
{[%clk 0:01:39]} 16. Bf4 {[%clk 0:02:17.5]} 16... Rc8 {[%clk 0:01:29.3]} 17. h4
{[%clk 0:02:11.6]} 17... h6 {[%clk 0:01:28.8]} 18. Bh3 {[%clk 0:01:57.6]} 18...
e6 {[%clk 0:01:27.4]} 19. Bd6 {[%clk 0:01:41.9]} 19... Re8 {[%clk 0:01:27.8]}
20. e5 {[%clk 0:01:29.1]} 20... Nb8 {[%clk 0:01:15.3]} 21. Nd2 {[%clk
0:01:20.4]} 21... Na6 {[%clk 0:01:15.6]} 22. Ne4 {[%clk 0:01:17.2]} 22... Nb4
{[%clk 0:01:12]} 23. Bxb4 {[%clk 0:01:10.3]} 23... axb4 {[%clk 0:01:12.6]} 24.
Nd6 {[%clk 0:01:09.3]} 24... Ra8 {[%clk 0:01:07.2]} 25. Rxb4 {[%clk 0:00:58.8]}
25... Re7 {[%clk 0:01:01.5]} 26. Reb1 {[%clk 0:00:56]} 26... Nd5 {[%clk
0:01:00.8]} 27. Rxb7 {[%clk 0:00:55.9]} 27... Rxb7 {[%clk 0:01:01.3]} 28. Rxb7
{[%clk 0:00:56.8]} 28... Bf8 {[%clk 0:00:54.6]} 29. Nxf7 {[%clk 0:00:55.5]}
29... Qa5 {[%clk 0:00:54.8]} 30. Qxg6+ {[%clk 0:00:54.2]} 1-0

[Event "Early-Titled-Tuesday-Blitz-October-03-2023"]
[Site "Chess.com"]
[Date "2023.10.03"]
[Round "3"]
[White "Xqswdc"]
[Black "Antik5"]
[Result "0-1"]
[WhiteElo "2304"]
[BlackElo "2501"]
[TimeControl "180+1"]
[EndTime "8:27:30 PDT"]
[Termination "Antik5 won by resignation"]

1. e4 {[%clk 0:03:00.9]} 1... c5 {[%clk 0:03:00.2]} 2. Nf3 {[%clk 0:03:00.9]}
2... d6 {[%clk 0:03:00.9]} 3. b3 {[%clk 0:02:55.5]} 3... e5 {[%clk 0:02:53.8]}
4. Bb2 {[%clk 0:02:51.8]} 4... Nf6 {[%clk 0:02:53.9]} 5. Nc3 {[%clk 0:02:52.3]}
5... Nc6 {[%clk 0:02:52.3]} 6. Bc4 {[%clk 0:02:51.8]} 6... Be7 {[%clk
0:02:45.2]} 7. h3 {[%clk 0:02:52.2]} 7... O-O {[%clk 0:02:42.6]} 8. O-O {[%clk
0:02:52.7]} 8... h6 {[%clk 0:02:32.9]} 9. Re1 {[%clk 0:02:53.1]} 9... a6 {[%clk
0:02:31.9]} 10. a4 {[%clk 0:02:52.3]} 10... Re8 {[%clk 0:02:31.7]} 11. Nd5
{[%clk 0:02:52.4]} 11... Bf8 {[%clk 0:02:28.5]} 12. Bc3 {[%clk 0:02:46.6]} 12...
Be6 {[%clk 0:02:17.2]} 13. Nxf6+ {[%clk 0:02:40.9]} 13... Qxf6 {[%clk
0:02:16.6]} 14. Bxe6 {[%clk 0:02:37.3]} 14... fxe6 {[%clk 0:02:00.7]} 15. d3
{[%clk 0:02:37.7]} 15... b5 {[%clk 0:01:53.4]} 16. Qe2 {[%clk 0:02:31.6]} 16...
b4 {[%clk 0:01:48.2]} 17. Bb2 {[%clk 0:02:31.8]} 17... Nd4 {[%clk 0:01:43.8]}
18. Nxd4 {[%clk 0:02:29.4]} 18... cxd4 {[%clk 0:01:44.2]} 19. a5 {[%clk
0:02:27.3]} 19... Rec8 {[%clk 0:01:40.5]} 20. Ra4 {[%clk 0:02:26.4]} 20... Rab8
{[%clk 0:01:38]} 21. Qd2 {[%clk 0:02:23.1]} 21... d5 {[%clk 0:01:34.7]} 22. Bc1
{[%clk 0:02:13.3]} 22... Bd6 {[%clk 0:01:33]} 23. Qd1 {[%clk 0:02:09.1]} 23...
Rb5 {[%clk 0:01:27]} 24. exd5 {[%clk 0:02:05.4]} 24... exd5 {[%clk 0:01:24.9]}
25. Qg4 {[%clk 0:02:05.8]} 25... Rxc2 {[%clk 0:01:18.8]} 26. Rf1 {[%clk
0:01:53.6]} 26... Rbc5 {[%clk 0:01:08.5]} 27. Ra1 {[%clk 0:01:49.8]} 27... Kh7
{[%clk 0:01:04]} 28. h4 {[%clk 0:01:45.6]} 28... Qg6 {[%clk 0:00:57.7]} 29. Qh3
{[%clk 0:01:45.3]} 29... R5c3 {[%clk 0:00:52.9]} 30. Rd1 {[%clk 0:01:39.6]}
30... e4 {[%clk 0:00:43.4]} 31. h5 {[%clk 0:01:24.8]} 31... Qf6 {[%clk
0:00:43.6]} 32. Rf1 {[%clk 0:01:19.2]} 32... Rxd3 {[%clk 0:00:40.9]} 33. Qd7
{[%clk 0:01:18.1]} 33... Qe5 {[%clk 0:00:34.4]} 0-1

[Event "Early-Titled-Tuesday-Blitz-October-03-2023"]
[Site "Chess.com"]
[Date "2023.10.03"]
[Round "3"]
[White "hellokostya"]
[Black "InitiatingASC"]
[Result "1-0"]
[WhiteElo "2540"]
[BlackElo "2335"]
[TimeControl "180+1"]
[EndTime "8:27:34 PDT"]
[Termination "hellokostya won by resignation"]

1. Nf3 {[%clk 0:03:00.9]} 1... Nf6 {[%clk 0:02:58]} 2. c4 {[%clk 0:03:00.8]}
2... c5 {[%clk 0:02:57.4]} 3. b3 {[%clk 0:02:59.4]} 3... g6 {[%clk 0:02:47.5]}
4. Bb2 {[%clk 0:02:59.5]} 4... Bg7 {[%clk 0:02:44]} 5. g3 {[%clk 0:03:00]} 5...
d6 {[%clk 0:02:41.2]} 6. Bg2 {[%clk 0:02:59.9]} 6... O-O {[%clk 0:02:41.1]} 7.
d4 {[%clk 0:02:58.7]} 7... cxd4 {[%clk 0:02:40.4]} 8. Nxd4 {[%clk 0:02:57.9]}
8... a6 {[%clk 0:02:33.7]} 9. Nc3 {[%clk 0:02:56.1]} 9... Qc7 {[%clk 0:02:34.2]}
10. O-O {[%clk 0:02:55]} 10... Nc6 {[%clk 0:02:34.4]} 11. Rc1 {[%clk 0:02:42.3]}
11... Nxd4 {[%clk 0:02:32.6]} 12. Qxd4 {[%clk 0:02:43.2]} 12... Nd7 {[%clk
0:02:30]} 13. Qd2 {[%clk 0:02:40.6]} 13... Nc5 {[%clk 0:02:27.7]} 14. Nd5 {[%clk
0:02:39.2]} 14... Qd8 {[%clk 0:02:27.2]} 15. Bxg7 {[%clk 0:02:39.3]} 15... Kxg7
{[%clk 0:02:28.1]} 16. Qb2+ {[%clk 0:02:37.1]} 16... f6 {[%clk 0:02:27.7]} 17.
b4 {[%clk 0:02:34.5]} 17... Ne6 {[%clk 0:02:27.2]} 18. Rfd1 {[%clk 0:02:27.5]}
18... Bd7 {[%clk 0:02:26.5]} 19. c5 {[%clk 0:02:11.9]} 19... dxc5 {[%clk
0:02:06.7]} 20. bxc5 {[%clk 0:02:12.8]} 20... Qe8 {[%clk 0:01:38.7]} 21. Qxb7
{[%clk 0:02:03.8]} 21... Bc6 {[%clk 0:01:39]} 22. Qxe7+ {[%clk 0:01:57.9]} 22...
Qxe7 {[%clk 0:01:36.5]} 23. Nxe7 {[%clk 0:01:58.8]} 23... Bxg2 {[%clk
0:01:36.7]} 24. Kxg2 {[%clk 0:01:59.7]} 24... Ra7 {[%clk 0:01:31.4]} 25. Nd5
{[%clk 0:01:54.4]} 25... Rc8 {[%clk 0:01:31.2]} 26. c6 {[%clk 0:01:52.6]} 26...
f5 {[%clk 0:01:26.4]} 27. Rc4 {[%clk 0:01:49.7]} 27... Kf7 {[%clk 0:01:25.2]}
28. c7 {[%clk 0:01:46.3]} 28... Nxc7 {[%clk 0:01:15.3]} 29. Rdc1 {[%clk
0:01:45.7]} 29... Nxd5 {[%clk 0:01:16.1]} 30. Rxc8 {[%clk 0:01:46]} 30... Ke6
{[%clk 0:01:09.3]} 31. e3 {[%clk 0:01:34.7]} 31... Nb4 {[%clk 0:01:03.1]} 32. a3
{[%clk 0:01:30.1]} 32... Nd5 {[%clk 0:01:02.4]} 33. h4 {[%clk 0:01:19.4]} 33...
Ke7 {[%clk 0:00:55.2]} 34. Rh8 {[%clk 0:01:14.5]} 34... Kd6 {[%clk 0:00:54.8]}
35. Rd1 {[%clk 0:01:13.8]} 35... Kc6 {[%clk 0:00:54.9]} 36. Rc8+ {[%clk
0:01:09.1]} 36... Nc7 {[%clk 0:00:54]} 37. Rdd8 {[%clk 0:01:00.8]} 37... Rb7
{[%clk 0:00:53.7]} 38. Rb8 {[%clk 0:00:58.9]} 1-0

[Event "Early-Titled-Tuesday-Blitz-October-03-2023"]
[Site "Chess.com"]
[Date "2023.10.03"]
[Round "3"]
[White "ContrVersia"]
[Black "viktorskliarov"]
[Result "1-0"]
[WhiteElo "2898"]
[BlackElo "2656"]
[TimeControl "180+1"]
[EndTime "8:27:35 PDT"]
[Termination "ContrVersia won by resignation"]

1. Nf3 {[%clk 0:03:00.9]} 1... g6 {[%clk 0:02:56.4]} 2. c4 {[%clk 0:03:00.6]}
2... Bg7 {[%clk 0:02:56.2]} 3. d4 {[%clk 0:03:01.3]} 3... Nf6 {[%clk 0:02:55.4]}
4. g3 {[%clk 0:03:01.4]} 4... O-O {[%clk 0:02:54.6]} 5. Bg2 {[%clk 0:03:02]}
5... d6 {[%clk 0:02:53.1]} 6. O-O {[%clk 0:03:02.1]} 6... Nbd7 {[%clk 0:02:50]}
7. Nc3 {[%clk 0:03:02.2]} 7... c6 {[%clk 0:02:48.3]} 8. e4 {[%clk 0:03:02.2]}
8... e5 {[%clk 0:02:47.9]} 9. h3 {[%clk 0:03:02.5]} 9... Qc7 {[%clk 0:02:46.6]}
10. Re1 {[%clk 0:03:01.7]} 10... a6 {[%clk 0:02:46.7]} 11. Be3 {[%clk
0:03:00.6]} 11... b5 {[%clk 0:02:44.2]} 12. c5 {[%clk 0:03:00.2]} 12... dxc5
{[%clk 0:02:35.5]} 13. dxe5 {[%clk 0:02:31.2]} 13... Nxe5 {[%clk 0:02:21.8]} 14.
Nxe5 {[%clk 0:02:30.3]} 14... Qxe5 {[%clk 0:02:20.7]} 15. f4 {[%clk 0:02:31.2]}
15... Qc7 {[%clk 0:01:54.5]} 16. Bxc5 {[%clk 0:02:17.7]} 16... Rd8 {[%clk
0:01:53]} 17. Qf3 {[%clk 0:02:17.6]} 17... Be6 {[%clk 0:01:41.4]} 18. e5 {[%clk
0:02:14.2]} 18... Nd5 {[%clk 0:01:40.3]} 19. Ne4 {[%clk 0:02:13.7]} 19... h5
{[%clk 0:01:24.8]} 20. Rac1 {[%clk 0:02:11.1]} 20... Bf8 {[%clk 0:01:21.1]} 21.
Bxf8 {[%clk 0:02:05]} 21... Rxf8 {[%clk 0:01:13.4]} 22. a3 {[%clk 0:01:49.8]}
22... a5 {[%clk 0:01:04.5]} 23. Qf2 {[%clk 0:01:46.9]} 23... Kg7 {[%clk
0:00:56.3]} 24. Ng5 {[%clk 0:01:40.9]} 24... Qd7 {[%clk 0:00:43.6]} 25. Red1
{[%clk 0:01:37.5]} 25... Rfd8 {[%clk 0:00:38.6]} 26. Qc5 {[%clk 0:01:22.4]}
26... Ra6 {[%clk 0:00:28.2]} 27. Ne4 {[%clk 0:01:16.2]} 27... Bxh3 {[%clk
0:00:24.6]} 28. Nf6 {[%clk 0:01:11.6]} 28... Nxf6 {[%clk 0:00:05.5]} 29. exf6+
{[%clk 0:01:11.4]} 1-0

[Event "Early-Titled-Tuesday-Blitz-October-03-2023"]
[Site "Chess.com"]
[Date "2023.10.03"]
[Round "3"]
[White "Balla_Tamas"]
[Black "ariosp"]
[Result "1-0"]
[WhiteElo "2442"]
[BlackElo "2223"]
[TimeControl "180+1"]
[EndTime "8:27:35 PDT"]
[Termination "Balla_Tamas won on time"]

1. e4 {[%clk 0:03:00.9]} 1... e5 {[%clk 0:02:54.2]} 2. Nf3 {[%clk 0:02:57]} 2...
Nc6 {[%clk 0:02:53.5]} 3. d4 {[%clk 0:02:47.8]} 3... exd4 {[%clk 0:02:51.5]} 4.
Nxd4 {[%clk 0:02:48.7]} 4... Bc5 {[%clk 0:02:50.6]} 5. Nb3 {[%clk 0:02:46.8]}
5... Bb6 {[%clk 0:02:49.8]} 6. Nc3 {[%clk 0:02:44.1]} 6... Nge7 {[%clk
0:02:45.7]} 7. Qe2 {[%clk 0:02:42.4]} 7... O-O {[%clk 0:02:37.7]} 8. Be3 {[%clk
0:02:42.2]} 8... f5 {[%clk 0:02:26.7]} 9. f3 {[%clk 0:02:37.9]} 9... fxe4 {[%clk
0:02:22.7]} 10. fxe4 {[%clk 0:02:27.7]} 10... Ne5 {[%clk 0:02:11.3]} 11. O-O-O
{[%clk 0:02:22.5]} 11... d6 {[%clk 0:02:10.1]} 12. h3 {[%clk 0:02:19.1]} 12...
Be6 {[%clk 0:02:06.2]} 13. Kb1 {[%clk 0:02:17.7]} 13... Kh8 {[%clk 0:01:11.3]}
14. Nd4 {[%clk 0:02:07.1]} 14... Bg8 {[%clk 0:01:07.6]} 15. Qh5 {[%clk
0:02:01.5]} 15... Qe8 {[%clk 0:00:51.5]} 16. Qh4 {[%clk 0:01:48.1]} 16... N7g6
{[%clk 0:00:46.5]} 17. Qg3 {[%clk 0:01:47.4]} 17... a5 {[%clk 0:00:36.4]} 18.
Be2 {[%clk 0:01:39.9]} 18... a4 {[%clk 0:00:36.2]} 19. a3 {[%clk 0:01:37.2]}
19... Ra5 {[%clk 0:00:33.9]} 20. Rhf1 {[%clk 0:01:35.2]} 20... Rxf1 {[%clk
0:00:22.4]} 21. Rxf1 {[%clk 0:01:36.1]} 21... c6 {[%clk 0:00:14.9]} 22. Nf5
{[%clk 0:01:33.8]} 22... Bxe3 {[%clk 0:00:11.2]} 23. Qxe3 {[%clk 0:01:34.7]}
23... Qd8 {[%clk 0:00:08.8]} 24. g3 {[%clk 0:01:25.4]} 24... b5 {[%clk
0:00:08.4]} 25. h4 {[%clk 0:01:21.5]} 25... Ne7 {[%clk 0:00:06.5]} 26. Nxg7
{[%clk 0:01:12.9]} 26... Kxg7 {[%clk 0:00:05.6]} 27. Qg5+ {[%clk 0:01:13.4]}
27... N5g6 {[%clk 0:00:01.9]} 28. h5 {[%clk 0:01:12.4]} 1-0

[Event "Early-Titled-Tuesday-Blitz-October-03-2023"]
[Site "Chess.com"]
[Date "2023.10.03"]
[Round "3"]
[White "Malysch"]
[Black "OchsenfroschGambit"]
[Result "1-0"]
[WhiteElo "2612"]
[BlackElo "2382"]
[TimeControl "180+1"]
[EndTime "8:27:36 PDT"]
[Termination "Malysch won by checkmate"]

1. d4 {[%clk 0:03:00.9]} 1... Nf6 {[%clk 0:02:59.1]} 2. c4 {[%clk 0:03:00.9]}
2... c5 {[%clk 0:02:59.7]} 3. d5 {[%clk 0:03:00.5]} 3... b5 {[%clk 0:03:00.2]}
4. cxb5 {[%clk 0:03:01.4]} 4... a6 {[%clk 0:03:00.7]} 5. bxa6 {[%clk 0:03:02.2]}
5... g6 {[%clk 0:03:01.3]} 6. Nc3 {[%clk 0:03:02]} 6... Bg7 {[%clk 0:03:01.7]}
7. Nf3 {[%clk 0:02:44.1]} 7... O-O {[%clk 0:03:01.5]} 8. a7 {[%clk 0:02:43]}
8... Rxa7 {[%clk 0:02:52.5]} 9. e4 {[%clk 0:02:42.5]} 9... e6 {[%clk 0:02:50.6]}
10. Be2 {[%clk 0:02:38.2]} 10... exd5 {[%clk 0:02:50.6]} 11. exd5 {[%clk
0:02:37.9]} 11... d6 {[%clk 0:02:51.1]} 12. O-O {[%clk 0:02:37.5]} 12... Na6
{[%clk 0:02:51.3]} 13. Bf4 {[%clk 0:02:30.3]} 13... Nc7 {[%clk 0:02:40.3]} 14.
h3 {[%clk 0:02:24.8]} 14... Rb7 {[%clk 0:01:53.4]} 15. Qd2 {[%clk 0:02:15.8]}
15... Nfxd5 {[%clk 0:01:44.8]} 16. Nxd5 {[%clk 0:01:56.8]} 16... Rxb2 {[%clk
0:01:44.7]} 17. Qd1 {[%clk 0:01:48.8]} 17... Nxd5 {[%clk 0:01:43.7]} 18. Qxd5
{[%clk 0:01:47.5]} 18... Rxe2 {[%clk 0:01:42.9]} 19. Rad1 {[%clk 0:01:38.3]}
19... Be6 {[%clk 0:01:34.6]} 20. Qxd6 {[%clk 0:01:36.3]} 20... Qxd6 {[%clk
0:01:12.8]} 21. Bxd6 {[%clk 0:01:35.8]} 21... Rc8 {[%clk 0:01:13.3]} 22. a3
{[%clk 0:01:18.5]} 22... Ra2 {[%clk 0:01:07.1]} 23. Rc1 {[%clk 0:01:18.1]} 23...
c4 {[%clk 0:01:06.2]} 24. Ng5 {[%clk 0:00:53.1]} 24... Bf5 {[%clk 0:00:51.5]}
25. Rfe1 {[%clk 0:00:42.2]} 25... Bb2 {[%clk 0:00:48.8]} 26. Rxc4 {[%clk
0:00:29]} 26... Rxc4 {[%clk 0:00:44]} 27. Re8+ {[%clk 0:00:28.9]} 27... Kg7
{[%clk 0:00:44.2]} 28. Bf8+ {[%clk 0:00:28.9]} 28... Kf6 {[%clk 0:00:44.3]} 29.
Nxh7# {[%clk 0:00:29.2]} 1-0

[Event "Early-Titled-Tuesday-Blitz-October-03-2023"]
[Site "Chess.com"]
[Date "2023.10.03"]
[Round "3"]
[White "profedechess93"]
[Black "Biregina"]
[Result "1-0"]
[WhiteElo "2656"]
[BlackElo "2463"]
[TimeControl "180+1"]
[EndTime "8:27:42 PDT"]
[Termination "profedechess93 won by checkmate"]

1. e4 {[%clk 0:03:00.9]} 1... e5 {[%clk 0:02:39.2]} 2. Nf3 {[%clk 0:03:01]} 2...
Nc6 {[%clk 0:02:39.1]} 3. Bc4 {[%clk 0:03:01.6]} 3... Nf6 {[%clk 0:02:36]} 4. d3
{[%clk 0:03:01.9]} 4... Bc5 {[%clk 0:02:31.5]} 5. c3 {[%clk 0:03:01.8]} 5... d6
{[%clk 0:02:31.4]} 6. Bb3 {[%clk 0:03:02.4]} 6... a6 {[%clk 0:02:29]} 7. Qe2
{[%clk 0:03:02.8]} 7... Ba7 {[%clk 0:02:28.4]} 8. Nbd2 {[%clk 0:03:03.5]} 8...
h6 {[%clk 0:02:27.9]} 9. Nf1 {[%clk 0:03:04]} 9... Ne7 {[%clk 0:02:28.2]} 10.
Ng3 {[%clk 0:03:04.5]} 10... Ng6 {[%clk 0:02:28.8]} 11. h3 {[%clk 0:03:02]}
11... O-O {[%clk 0:02:27.7]} 12. Nh2 {[%clk 0:03:01.5]} 12... Nf4 {[%clk
0:02:26.5]} 13. Qf3 {[%clk 0:02:58.5]} 13... d5 {[%clk 0:02:17.5]} 14. Ng4
{[%clk 0:02:55.3]} 14... dxe4 {[%clk 0:02:14.3]} 15. Nxf6+ {[%clk 0:02:47]}
15... Qxf6 {[%clk 0:02:04.4]} 16. Nxe4 {[%clk 0:02:27.9]} 16... Qg6 {[%clk
0:02:04.3]} 17. Bxf4 {[%clk 0:02:25.8]} 17... exf4 {[%clk 0:02:04.3]} 18. Qxf4
{[%clk 0:02:26.1]} 18... Be6 {[%clk 0:01:45.9]} 19. O-O-O {[%clk 0:02:22]} 19...
Bxb3 {[%clk 0:01:45.8]} 20. axb3 {[%clk 0:02:21.8]} 20... f5 {[%clk 0:01:45.2]}
21. Ng3 {[%clk 0:02:17]} 21... Qb6 {[%clk 0:01:44.7]} 22. Qc4+ {[%clk
0:02:09.8]} 22... Kh8 {[%clk 0:01:44.7]} 23. Rhf1 {[%clk 0:02:09.9]} 23... Rae8
{[%clk 0:01:37.9]} 24. d4 {[%clk 0:02:09.9]} 24... f4 {[%clk 0:01:30.9]} 25. Ne2
{[%clk 0:02:09.1]} 25... Re6 {[%clk 0:01:14.8]} 26. Ng1 {[%clk 0:02:00.5]} 26...
Rfe8 {[%clk 0:00:52.2]} 27. Nf3 {[%clk 0:02:00.3]} 27... Qa5 {[%clk 0:00:52.1]}
28. Ne5 {[%clk 0:01:42.8]} 28... b5 {[%clk 0:00:33.8]} 29. Qd5 {[%clk
0:01:40.7]} 29... c5 {[%clk 0:00:22.8]} 30. Rfe1 {[%clk 0:01:40.6]} 30... cxd4
{[%clk 0:00:22]} 31. Nf7+ {[%clk 0:01:40.5]} 31... Kh7 {[%clk 0:00:16.1]} 32.
Rxe6 {[%clk 0:01:27]} 32... Rxe6 {[%clk 0:00:14.6]} 33. Qxe6 {[%clk 0:01:27]}
33... dxc3 {[%clk 0:00:09.7]} 34. Qf5+ {[%clk 0:01:23.5]} 34... g6 {[%clk
0:00:09.8]} 35. Ng5+ {[%clk 0:01:23.7]} 35... hxg5 {[%clk 0:00:09.6]} 36. Rd7+
{[%clk 0:01:21.2]} 36... Kh6 {[%clk 0:00:09]} 37. Qf8+ {[%clk 0:01:20.8]} 37...
Kh5 {[%clk 0:00:09.3]} 38. Rh7# {[%clk 0:01:19.9]} 1-0